bitfinex/quotes_ETHUSD_20240924
["timestamp","ask_amount","ask_price","bid_price","bid_amount"]
[1727188401418,5.07882,2605.0,2604.2,3.83983]
[1727188401565,5.07882,2605.0,2604.4,3.83953]
[1727188401566,0.55,2604.9,2604.4,3.83953]
[1727188401982,0.55,2604.9,2604.0,1.6003249]
[1727188401983,0.55,2604.9,2604.2,3.83986]
[1727188402169,1.5996,2604.8,2604.4,3.83964]
[1727188402557,1.5996,2604.8,2604.2,7.67968]
[1727188402800,3.83937,2604.6,2604.2,0.92800049]
[1727188402957,3.83976,2604.4,2604.0,0.0423249]
[1727188403164,5.07976,2604.4,2604.0,0.0423249]
[1727188403360,4.39009,2604.1,2604.0,0.0423249]
[1727188403594,7.22969,2604.1,2604.0,0.0423249]
[1727188403854,3.3896,2604.1,2604.0,0.0423249]
[1727188404494,7.22969,2604.1,2604.0,0.0423249]
[1727188405095,1.24,2604.1,2604.0,0.0423249]
[1727188405821,1.24,2604.1,2604.0,3.8825649]
[1727188405968,1.24,2604.1,2604.0,4.66173863]
[1727188406483,1.24,2604.1,2604.0,3.8825649]
[1727188406688,1.24,2604.1,2604.0,6.8825649]
[1727188407200,1.24,2604.1,2604.0,0.0423249]
[1727188407579,0.09600653,2604.3,2604.0,0.0423249]
[1727188407891,4.39009,2604.1,2604.0,0.0423249]
[1727188408194,0.55,2604.1,2604.0,0.0423249]
[1727188408424,0.55,2604.1,2603.4,1.558]
[1727188408425,1.24,2604.5,2603.8,3.84051]
[1727188408572,1.24,2604.5,2603.4,1.558]
[1727188408573,0.55,2604.4,2604.0,0.0343956]
[1727188409219,0.55,2604.4,2604.0,3.8746256]
[1727188409375,0.55,2604.4,2604.0,3.8746356]
[1727188409872,0.55,2604.4,2604.1,3.84008]
[1727188410071,1.24,2604.5,2604.0,0.0343956]
[1727188410272,1.24,2604.6,2604.5,3.8395]
[1727188410802,1.24,2604.6,2604.3,3.83969]
[1727188411017,1.24,2604.6,2604.2,3.0343956]
[1727188411317,5.07949,2604.6,2604.2,0.0343956]
[1727188411517,1.24,2604.6,2604.2,0.0343956]
[1727188411667,1.24,2604.6,2604.3,3.83978]
[1727188412075,1.24,2604.6,2604.3,7.67942]
[1727188412323,1.24,2604.7,2604.6,3.83936]
[1727188412468,1.24,2604.7,2604.4,3.0]
[1727188412469,1.24,2605.4,2605.2,3.83835]
[1727188412674,1.24,2605.7,2605.3,3.83823]
[1727188413307,1.24,2605.7,2605.2,3.83835]
[1727188413531,1.24,2605.7,2605.6,3.83788]
[1727188413708,1.24,2605.7,2605.3,3.83824]
[1727188414077,1.24,2605.7,2605.3,3.83823]
[1727188414372,1.24,2605.7,2605.4,0.06874111]
[1727188414582,1.24,2605.7,2605.6,3.83788]
[1727188415654,1.24,2605.7,2605.4,5.38153]
[1727188415655,1.24,2605.7,2605.5,3.83801]
[1727188415803,1.24,2605.7,2605.4,3.83803]
[1727188416523,1.24,2605.9,2605.7,3.83772]
[1727188417231,1.24,2606.2,2605.7,0.76756]
[1727188417379,1.24,2606.2,2606.1,3.83715]
[1727188417580,1.24,2606.2,2606.0,3.83716]
[1727188418409,1.24,2606.2,2605.8,5.38103]
[1727188418610,1.24,2606.2,2605.9,3.83733]
[1727188418812,1.24,2606.2,2606.0,3.8372]
[1727188419016,1.24,2606.2,2606.1,3.83715]
[1727188419184,1.24,2606.2,2606.0,3.8372]
[1727188419531,1.24,2606.2,2605.5,4.5435]
[1727188419691,1.24,2606.2,2606.0,7.67438]
[1727188419884,1.24,2606.2,2606.0,3.83719]
[1727188420084,1.24,2606.2,2606.1,3.83715]
[1727188420287,1.24,2606.2,2606.0,3.83719]
[1727188420830,1.24,2606.2,2605.8,3.83755]
[1727188420991,1.24,2606.2,2605.9,3.83744]
[1727188421192,1.24,2606.2,2606.0,3.83721]
[1727188421393,1.24,2606.2,2606.1,3.83715]
[1727188422529,1.24,2606.2,2606.0,3.83721]
[1727188422530,1.24,2606.4,2606.0,3.8372]
[1727188422834,1.24,2606.4,2605.8,3.83751]
[1727188423168,1.24,2606.4,2606.1,3.83714]
[1727188423334,1.24,2606.4,2605.9,3.83736]
[1727188423792,5.58481006,2606.4,2605.8,3.83758]
[1727188424218,1.24,2606.4,2605.5,1.5435]
[1727188424423,1.24,2606.4,2606.2,3.83692]
[1727188424603,1.24,2606.4,2606.0,3.83721]
[1727188424805,5.07671,2606.4,2605.8,3.83752]
[1727188425017,8.91349,2606.4,2605.8,3.83752]
[1727188425289,2.126,2606.1,2605.4,3.83806]
[1727188425488,9.00992586,2606.0,2605.1,1.5435]
[1727188425716,0.55,2605.9,2605.5,3.83802]
[1727188426088,1.24,2606.0,2605.2,0.06874291]
[1727188426289,1.24,2606.0,2605.6,7.67555]
[1727188426535,1.24,2606.0,2605.6,3.83775]
[1727188427638,1.24,2606.0,2605.7,3.83761]
[1727188427995,3.83797,2605.6,2604.9,3.83884]
[1727188428197,3.83797,2605.6,2604.7,3.83911]
[1727188428198,3.83818,2605.4,2604.7,3.83911]
[1727188428395,3.83818,2605.4,2604.9,3.83884]
[1727188428634,3.83849,2605.2,2604.7,3.83911]
[1727188428797,0.55,2605.1,2604.5,5.46501]
[1727188429000,3.83877,2605.0,2604.5,9.30442]
[1727188429306,3.83877,2605.0,2604.2,0.0343956]
[1727188429307,5.07877,2605.0,2604.4,3.83956]
[1727188429492,5.07877,2605.0,2604.5,3.83947]
[1727188429695,1.24,2605.0,2604.6,3.83934]
[1727188429890,1.24,2605.0,2604.8,3.83895]
[1727188430343,1.24,2605.0,2604.9,3.83891]
[1727188430636,1.24,2605.0,2604.9,6.83891]
[1727188431651,1.24,2605.7,2605.4,3.83817]
[1727188432865,1.24,2605.7,2605.6,3.83788]
[1727188433080,1.24,2606.0,2605.4,0.767654]
[1727188433376,1.24,2606.0,2605.9,3.83744]
[1727188433730,1.24,2606.0,2605.7,3.83762]
[1727188433967,1.24,2606.0,2605.6,3.83776]
[1727188434127,1.24,2606.0,2605.7,3.83772]
[1727188434551,1.24,2606.0,2605.3,4.6256]
[1727188434766,1.24,2606.0,2605.6,3.0]
[1727188434944,6.00529314,2605.9,2605.2,3.0]
[1727188435140,3.83767,2605.8,2605.2,6.83845]
[1727188435568,3.83778,2605.7,2605.2,6.83845]
[1727188435732,7.87311931,2605.9,2605.4,3.83816]
[1727188435931,7.87311931,2605.9,2605.2,6.83845]
[1727188435932,3.83774,2605.7,2605.2,6.83845]
[1727188436132,3.83774,2605.7,2605.2,6.83838]
[1727188436431,3.83774,2605.7,2604.9,1.6256]
[1727188436432,1.17109193,2605.7,2604.9,1.6256]
[1727188436642,1.17109193,2605.7,2604.6,3.383934]
[1727188436643,3.83821,2605.4,2604.8,3.83904]
[1727188436947,1.33596684,2605.3,2604.6,5.848784]
[1727188437271,1.5211,2605.2,2604.8,3.83906]
[1727188437476,1.5211,2605.2,2604.8,7.67812]
[1727188437681,1.24,2605.3,2604.9,3.83879]
[1727188437861,1.24,2605.3,2604.8,3.83906]
[1727188437862,5.07834,2605.3,2604.6,3.83926]
[1727188438062,5.07834,2605.3,2604.7,3.83918]
[1727188438381,3.83886,2605.0,2604.2,7.7141656]
[1727188438536,1.24,2605.0,2604.2,0.0343956]
[1727188438736,3.83959,2604.5,2604.2,0.0343956]
[1727188438934,0.09599899,2604.4,2604.2,0.0343956]
[1727188439161,1.24,2604.4,2604.2,0.0343956]
[1727188441187,8.41999583,2604.3,2604.2,0.0343956]
[1727188441397,12.60641872,2604.3,2604.2,0.0343956]
[1727188441587,12.60641872,2604.3,2602.6,0.0380362]
[1727188441588,5.37958,2603.5,2602.6,0.0380362]
[1727188441895,5.37958,2603.5,2602.7,3.84206]
[1727188441896,11.10377314,2603.5,2602.7,3.84206]
[1727188442262,11.10377314,2603.5,2602.6,0.0380362]
[1727188443757,5.93076,2602.7,2602.6,0.0380362]
[1727188443978,7.0927238,2602.7,2602.6,0.0380362]
[1727188444381,3.2505638,2602.7,2602.6,0.0380362]
[1727188444594,1.1619638,2602.7,2602.6,0.0380362]
[1727188444801,1.1619638,2602.7,2602.6,3.8803462]
[1727188444981,1.1619638,2602.7,2602.6,0.0380362]
[1727188446020,1.1619638,2602.7,2602.6,3.8803462]
[1727188446170,1.1619638,2602.7,2602.6,4.26838082]
[1727188446366,1.1619638,2602.7,2602.6,3.8803462]
[1727188447403,1.1619638,2602.7,2602.6,0.0380362]
[1727188447769,1.1619638,2602.7,2602.6,3.8803462]
[1727188448811,1.1619638,2602.7,2602.6,6.8803462]
[1727188450796,1.1619638,2602.7,2602.6,11.92611495]
[1727188450997,1.1619638,2602.7,2602.6,10.0373927]
[1727188451412,1.1619638,2602.7,2602.6,12.2864507]
[1727188451928,1.1619638,2602.7,2602.6,10.0373927]
[1727188452236,1.1619638,2602.7,2602.6,12.2716107]
[1727188452532,1.1619638,2602.7,2602.6,10.0373927]
[1727188452694,1.1619638,2602.7,2602.6,15.3420507]
[1727188453032,1.1619638,2602.7,2602.6,13.0234507]
[1727188453194,1.1619638,2602.7,2602.6,13.49246945]
[1727188453606,1.1619638,2602.7,2602.6,13.84033915]
[1727188453833,1.1619638,2602.7,2602.6,13.49246945]
[1727188454129,1.1397524,2602.7,2602.6,13.84033915]
[1727188454330,1.1397524,2602.7,2602.6,14.22563915]
[1727188454626,1.1397524,2602.7,2602.6,13.87776945]
[1727188454627,0.63217254,2602.7,2602.6,13.87776945]
[1727188455144,1.5386,2604.1,2604.0,3.84024]
[1727188455293,1.5386,2604.5,2604.2,3.83994]
[1727188455493,1.5386,2604.5,2604.4,3.83965]
[1727188455698,1.5386,2604.5,2604.2,3.83994]
[1727188455994,1.5386,2604.5,2604.4,3.83965]
[1727188456194,1.5386,2604.9,2604.3,3.83975]
[1727188456391,1.5386,2604.9,2603.6,1.5802]
[1727188456392,3.83924,2604.7,2604.2,3.0]
[1727188456628,3.83952,2604.5,2603.8,6.84044]
[1727188456820,4.81475244,2604.4,2604.0,3.8401]
[1727188457025,4.43080044,2604.4,2604.0,3.8401]
[1727188457227,1.5386,2604.3,2604.0,3.8401]
[1727188458334,1.5386,2604.3,2603.8,7.68089]
[1727188458533,1.5386,2604.3,2603.8,3.84039]
[1727188458743,1.5386,2604.3,2603.9,3.84037]
[1727188458898,1.5386,2604.3,2604.0,3.84016]
[1727188459598,0.57,2604.2,2603.6,3.84077]
[1727188459793,3.84027,2604.0,2603.5,3.84097]
[1727188460036,3.84056,2603.8,2603.2,3.84133]
[1727188460204,4.39106,2603.5,2603.0,3.84161]
[1727188460407,8.27171044,2603.6,2603.0,3.84161]
[1727188460408,4.43080044,2603.6,2603.0,3.84161]
[1727188460774,4.43080044,2603.6,2603.0,3.84158]
[1727188460935,4.41101,2603.5,2603.0,3.84158]
[1727188461241,4.41101,2603.5,2602.8,3.84191]
[1727188461438,4.41101,2603.5,2602.9,3.84178]
[1727188461439,8.25208,2603.5,2602.9,3.84178]
[1727188461741,0.57,2603.5,2603.1,3.84146]
[1727188461942,0.57,2603.5,2603.0,3.84159]
[1727188462239,0.57,2603.5,2603.1,3.84156]
[1727188462456,0.57,2603.5,2603.0,3.84159]
[1727188462743,0.57,2603.5,2603.0,4.525749]
[1727188462940,0.57,2603.5,2603.0,7.68322]
[1727188463233,0.55,2603.4,2602.8,3.0]
[1727188463444,0.55,2603.4,2602.9,3.84175]
[1727188463643,4.39113,2603.4,2603.0,3.0]
[1727188463802,0.55,2603.4,2602.9,6.84175]
[1727188464000,0.55,2603.4,2602.9,10.6835]
[1727188464197,0.55,2603.4,2602.9,6.84175]
[1727188464446,4.39121,2603.4,2602.9,6.84175]
[1727188464634,3.84136,2603.3,2602.8,3.0]
[1727188465039,4.39121,2603.4,2602.8,3.0]
[1727188465040,3.84155,2603.2,2602.8,3.0]
[1727188465341,5.95021,2603.1,2602.6,6.8802962]
[1727188465505,5.95021,2603.1,2602.6,3.8802962]
[1727188465707,4.41181,2603.0,2602.6,0.0380362]
[1727188465923,5.390986,2603.0,2602.6,0.0380362]
[1727188466225,3.84201,2602.8,2602.6,0.0380362]
[1727188466612,5.390986,2603.0,2602.6,0.0380362]
[1727188466808,4.41181,2603.0,2602.6,0.0380362]
[1727188467010,0.57,2603.0,2602.6,0.81032682]
[1727188467240,0.57,2603.0,2602.8,3.84191]
[1727188467948,0.57,2603.0,2602.6,0.0380362]
[1727188468117,3.84192,2602.9,2602.6,0.0380362]
[1727188468316,0.57,2603.0,2602.6,3.8802962]
[1727188468519,0.57,2603.0,2602.7,3.84201]
[1727188468728,0.57,2603.0,2602.6,4.65256982]
[1727188468924,0.57,2603.0,2602.8,3.84199]
[1727188469351,0.55,2602.7,2602.6,0.0380362]
[1727188469561,6.52303961,2602.7,2602.6,0.0380362]
[1727188469852,6.52303961,2602.7,2601.1,5.42462]
[1727188469853,3.84334,2601.9,2601.1,5.42462]
[1727188470054,10.93274044,2601.9,2601.1,3.84451]
[1727188470661,10.93274044,2601.9,2600.9,5.42491]
[1727188470826,10.93274044,2601.9,2600.7,3.84502]
[1727188471025,10.93274044,2601.9,2600.9,3.8448]
[1727188471365,10.93274044,2601.9,2601.1,3.84443]
[1727188471518,10.93274044,2601.9,2600.9,3.84474]
[1727188471854,10.93274044,2601.9,2600.7,3.84506]
[1727188472097,10.93274044,2601.9,2600.9,3.8447]
[1727188472981,10.93274044,2601.9,2600.8,6.84494]
[1727188473152,10.93274044,2601.9,2600.8,3.0]
[1727188473353,10.93274044,2601.9,2600.6,3.84519]
[1727188473584,10.93274044,2601.9,2600.5,5.42551]
[1727188473761,10.93274044,2601.9,2600.6,3.84516]
[1727188474093,10.93274044,2601.9,2600.7,3.84508]
[1727188474394,10.93274044,2601.9,2600.7,3.84503]
[1727188474892,10.93274044,2601.9,2600.9,3.84473]
[1727188475253,10.93274044,2601.9,2600.5,1.5802]
[1727188475254,7.08940044,2601.9,2601.0,0.50705495]
[1727188475460,7.08940044,2601.9,2601.4,3.84406]
[1727188475904,7.08940044,2601.9,2601.3,3.8441]
[1727188475905,0.5319638,2601.8,2601.3,3.8441]
[1727188476403,4.3754638,2601.8,2601.3,3.8441]
[1727188476557,0.5319638,2601.8,2601.3,3.8441]
[1727188477453,0.5319638,2601.8,2601.0,0.0380362]
[1727188477689,6.51940044,2601.9,2601.6,3.84378]
[1727188477690,0.4919638,2601.7,2601.6,3.84378]
[1727188477894,0.4919638,2601.7,2601.2,2.08581875]
[1727188477895,0.4919638,2601.7,2601.3,3.84421]
[1727188478594,0.4919638,2601.7,2601.2,3.84429]
[1727188478797,0.4919638,2601.7,2601.2,3.84427]
[1727188479186,4.3356938,2601.7,2601.0,3.8825762]
[1727188479355,0.4919638,2601.6,2601.1,6.84444]
[1727188479559,0.43356938,2601.5,2601.1,6.84444]
[1727188479774,0.43356938,2601.5,2601.0,0.0380362]
[1727188479775,4.39452,2601.1,2601.0,0.0380362]
[1727188479975,8.87748279,2601.1,2601.0,0.0380362]
[1727188480278,10.14967007,2601.1,2601.0,0.0380362]
[1727188480478,11.67367007,2601.1,2601.0,0.0380362]
[1727188482169,11.67367007,2601.1,2600.2,0.0380362]
[1727188482170,3.99099899,2600.5,2600.2,0.0380362]
[1727188482367,0.09614604,2600.4,2600.2,0.0380362]
[1727188482669,5.95767984,2600.4,2600.2,0.0380362]
[1727188483010,5.88254168,2600.3,2600.2,0.0380362]
[1727188483307,0.4919638,2600.3,2600.2,0.0380362]
[1727188484280,0.4919638,2600.3,2600.2,3.8838862]
[1727188484913,0.4919638,2600.3,2600.2,6.8838862]
[1727188485471,0.4919638,2600.3,2600.2,6.95308409]
[1727188485809,0.4919638,2600.3,2600.2,8.5006862]
[1727188486126,0.4919638,2600.3,2600.2,9.73535482]
[1727188487308,0.4919638,2600.3,2600.2,8.5006862]
[1727188487609,0.4919638,2600.3,2600.2,3.8838862]
[1727188487904,0.4919638,2600.3,2600.2,0.0380362]
[1727188489606,0.4919638,2600.3,2600.2,3.8838862]
[1727188492091,0.4919638,2600.3,2600.2,22.0172852]
[1727188492299,0.4919638,2600.3,2600.2,24.60361272]
[1727188493074,0.4919638,2600.3,2600.2,16.29103372]
[1727188493827,1.5865,2601.9,2600.4,1.6411]
[1727188494129,1.5865,2601.9,2601.6,3.84377]
[1727188494272,0.04,2601.8,2601.6,3.84377]
[1727188494472,0.04,2601.8,2601.7,3.84364]
[1727188495948,0.04,2601.8,2601.6,3.84377]
[1727188496527,5.57749899,2601.7,2601.1,1.6411]
[1727188496733,5.57749899,2601.7,2601.2,3.84433]
[1727188496912,5.57749899,2601.7,2601.1,0.848567]
[1727188497111,5.57749899,2601.7,2601.5,3.84384]
[1727188497429,0.04,2601.8,2601.6,3.84368]
[1727188497925,0.04,2601.8,2601.6,7.68735]
[1727188498128,0.04,2601.8,2601.7,3.84364]
[1727188498423,0.04,2601.8,2601.5,3.84388]
[1727188498629,0.04,2601.8,2601.4,3.844]
[1727188498831,0.04,2601.8,2601.4,7.688]
[1727188499131,0.04,2601.8,2601.4,4.6128]
[1727188499342,0.04,2601.8,2601.5,3.84393]
[1727188499547,0.04,2601.9,2601.4,3.844]
[1727188499708,3.97952555,2601.9,2601.4,3.844]
[1727188500410,1.5865,2601.4,2600.8,3.84487]
[1727188500612,3.99099899,2601.2,2600.7,3.84499]
[1727188500845,3.84281,2602.3,2600.3,3.84565]
[1727188500846,1.6647,2600.8,2600.3,3.8456]
[1727188501152,1.6647,2600.8,2600.2,3.8838162]
[1727188501153,3.99099899,2600.5,2600.2,3.8838162]
[1727188501454,6.1153299,2600.8,2600.2,0.0380362]
[1727188501455,5.69569899,2600.8,2600.2,0.0380362]
[1727188501613,0.04,2600.8,2600.7,3.84511]
[1727188501802,0.04,2600.8,2600.7,4.229621]
[1727188502309,0.04,2600.8,2600.7,4.29876636]
[1727188502821,0.04,2600.8,2600.7,4.229621]
[1727188503132,0.04,2600.8,2600.7,3.84511]
[1727188504038,0.04,2600.8,2600.4,3.84548]
[1727188504237,0.04,2600.8,2600.7,3.84511]
[1727188504443,0.04,2600.8,2600.6,3.84516]
[1727188505402,0.04,2600.8,2600.7,3.84511]
[1727188505636,0.04,2601.0,2600.7,3.84511]
[1727188505807,0.04,2601.0,2600.8,3.84494]
[1727188506026,0.04,2601.0,2600.9,3.84482]
[1727188506232,5.65569899,2601.5,2600.9,3.84482]
[1727188506233,3.84408,2601.4,2600.9,3.80482]
[1727188506537,5.65569899,2601.5,2601.1,3.84443]
[1727188506747,5.65569899,2601.5,2601.1,3.84449]
[1727188507115,3.99099899,2601.8,2601.4,3.84396]
[1727188507316,3.99099899,2601.8,2601.5,3.84393]
[1727188507631,40.6647,2601.9,2601.6,3.84378]
[1727188507966,39.0,2601.9,2601.3,3.84422]
[1727188508162,39.0,2601.9,2601.8,3.84349]
[1727188509050,39.0,2601.9,2601.8,5.39279]
[1727188509559,39.0,2601.9,2601.8,14.169229]
[1727188509720,39.0,2601.9,2601.8,8.39279]
[1727188509917,39.0,2601.9,2601.8,9.616431]
[1727188510339,39.0,2601.9,2601.8,22.531104]
[1727188510656,39.0,2601.9,2601.8,9.616431]
[1727188511269,36.78641938,2601.9,2601.8,19.093696]
[1727188511422,35.86222213,2601.9,2601.8,19.56271475]
[1727188511626,35.86222213,2601.9,2601.8,19.093696]
[1727188512468,35.86222213,2601.9,2601.8,20.42588717]
[1727188513168,34.41410947,2601.9,2601.8,21.81081504]
[1727188513371,34.41410947,2601.9,2601.8,20.42588717]
[1727188513573,34.41410947,2601.9,2601.8,19.87588717]
[1727188514075,34.41410947,2601.9,2601.8,19.478996]
[1727188514376,34.41410947,2601.9,2601.8,10.001731]
[1727188514782,34.41410947,2601.9,2601.8,19.973245]
[1727188515076,34.41410947,2601.9,2601.8,6.616431]
[1727188515680,34.41410947,2601.9,2601.8,5.39279]
[1727188515894,19.8782843,2601.9,2601.8,41.99571317]
[1727188516108,7.05959676,2601.9,2601.8,33.16085988]
[1727188516293,7.05959676,2601.9,2601.8,19.33528717]
[1727188516496,7.05959676,2601.9,2601.8,18.90373917]
[1727188516696,7.05959676,2601.9,2601.8,17.224245]
[1727188516905,7.05959676,2601.9,2601.8,3.84349]
[1727188518704,7.05959676,2601.9,2601.7,3.84362]
[1727188518705,7.05959676,2601.9,2601.7,3.84354]
[1727188519009,7.05959676,2601.9,2601.5,3.8439]
[1727188519210,1.6204,2601.8,2601.6,3.84374]
[1727188519703,1.6204,2601.8,2601.3,3.84415]
[1727188520411,1.6204,2601.8,2601.4,3.84406]
[1727188520582,1.6204,2601.8,2601.6,3.84376]
[1727188520771,1.6204,2601.8,2601.4,3.84406]
[1727188521698,1.6204,2601.8,2601.5,3.84392]
[1727188521903,7.05959676,2601.9,2601.7,3.84364]
[1727188522127,7.05959676,2601.9,2601.5,3.84392]
[1727188522345,7.05959676,2601.9,2601.3,3.84421]
[1727188522346,7.05959676,2601.9,2601.4,3.84408]
[1727188522631,7.05959676,2601.9,2600.7,4.66]
[1727188522788,10.90304676,2601.9,2601.3,3.84413]
[1727188522989,12.98328964,2601.9,2601.3,7.68827]
[1727188523224,9.13983964,2601.9,2601.3,3.84413]
[1727188523423,7.05959676,2601.9,2601.1,3.84448]
[1727188523637,7.05959676,2601.9,2601.6,3.8437]
[1727188523795,7.05959676,2601.9,2601.8,3.84349]
[1727188524738,7.05959676,2601.9,2601.5,1.66]
[1727188524739,7.05959676,2601.9,2601.6,3.84369]
[1727188524905,7.05959676,2601.9,2601.5,3.84388]
[1727188525088,7.05959676,2601.9,2601.3,3.84414]
[1727188525694,7.05959676,2601.9,2601.1,3.84443]
[1727188525695,7.05959676,2601.9,2601.0,3.0]
[1727188525897,7.05959676,2601.9,2601.8,3.84349]
[1727188528733,7.05959676,2601.9,2601.7,3.84363]
[1727188529038,7.05959676,2601.9,2601.5,3.84384]
[1727188529237,7.05959676,2601.9,2601.6,3.0]
[1727188529439,7.05959676,2601.9,2601.7,3.84362]
[1727188529708,7.05959676,2601.9,2601.7,7.68717]
[1727188529973,7.05959676,2601.9,2601.5,3.84388]
[1727188530179,7.05959676,2601.9,2601.3,3.84408]
[1727188530387,7.05959676,2601.9,2601.1,3.84448]
[1727188530609,7.05959676,2601.9,2601.4,3.84396]
[1727188530881,7.15568949,2601.9,2601.2,7.68854]
[1727188531197,7.15568949,2601.9,2601.3,3.84422]
[1727188531354,7.15568949,2601.9,2601.2,3.84423]
[1727188531355,8.72054515,2601.9,2601.4,3.84407]
[1727188532240,8.72054515,2601.9,2601.2,3.84423]
[1727188532241,7.05959676,2601.9,2601.2,3.84427]
[1727188532499,7.05959676,2601.9,2601.7,3.84351]
[1727188533063,7.05959676,2601.9,2601.8,3.84349]
[1727188534153,7.05959676,2601.9,2601.7,3.84351]
[1727188534583,7.05959676,2601.9,2601.5,3.84383]
[1727188534747,1.5879,2601.8,2600.9,1.6391]
[1727188535077,4.08628878,2601.7,2601.0,7.68923]
[1727188535280,7.83392436,2601.7,2601.0,3.84458]
[1727188535487,7.83392436,2601.7,2600.8,3.84489]
[1727188535488,3.99019436,2601.4,2600.8,3.84489]
[1727188535669,0.09611302,2601.3,2600.8,3.84489]
[1727188535856,7.83428436,2601.4,2600.6,3.84517]
[1727188535857,0.09611582,2601.2,2600.6,3.84517]
[1727188536059,5.57809436,2601.1,2600.2,3.8837562]
[1727188536291,9.42271436,2601.1,2600.2,0.0380362]
[1727188536490,1.5879,2601.1,2600.4,3.84542]
[1727188536689,5.43244,2601.1,2600.4,3.84542]
[1727188537114,1.5879,2601.1,2600.4,3.84542]
[1727188537327,1.5879,2601.1,2600.6,3.84518]
[1727188537681,1.5879,2601.1,2600.6,3.84526]
[1727188538314,1.5879,2601.1,2600.6,3.84516]
[1727188538526,1.5879,2601.1,2600.4,3.84547]
[1727188539076,1.5879,2601.1,2600.5,3.84532]
[1727188539520,1.5879,2601.1,2600.6,3.84525]
[1727188539701,1.5879,2601.1,2600.7,3.84497]
[1727188539902,1.5879,2601.1,2600.8,3.84483]
[1727188540118,1.5879,2601.1,2600.9,3.8448]
[1727188540424,1.5879,2601.1,2600.5,3.8453]
[1727188540716,1.5879,2601.1,2600.2,3.8838662]
[1727188540904,1.5879,2601.1,2600.7,3.84501]
[1727188541117,1.5879,2601.1,2600.6,3.84516]
[1727188541320,2.131114,2601.1,2600.4,3.84545]
[1727188541511,3.84477,2601.0,2600.3,3.84561]
[1727188541711,3.84477,2601.0,2600.2,3.8838462]
[1727188541712,5.43256,2601.1,2600.4,3.84543]
[1727188541893,10.64921445,2601.1,2600.4,3.84543]
[1727188542294,6.80455445,2601.1,2600.2,3.8837862]
[1727188542535,3.84468,2601.0,2600.3,3.8456]
[1727188543036,6.80451445,2601.1,2600.4,3.84554]
[1727188543210,10.64912445,2601.1,2600.4,3.84554]
[1727188543407,6.80451445,2601.1,2600.5,3.8454]
[1727188543615,1.5879,2601.1,2600.7,3.84504]
[1727188543866,1.5879,2601.1,2600.6,3.84518]
[1727188544063,3.0,2601.7,2600.6,3.84518]
[1727188544064,1.5879,2601.8,2600.6,1.6391]
[1727188544226,1.5879,2601.8,2601.2,3.8443]
[1727188544428,3.28131213,2601.8,2601.2,3.8443]
[1727188544664,1.5879,2601.8,2601.6,3.8437]
[1727188545165,1.5879,2601.8,2601.4,3.84397]
[1727188545347,1.5879,2601.8,2601.5,3.84386]
[1727188545670,1.5879,2601.8,2601.2,3.84427]
[1727188545824,1.5879,2601.8,2601.5,3.84383]
[1727188547600,2.89696713,2601.8,2601.1,3.84444]
[1727188547768,7.78353533,2601.7,2600.9,7.6894]
[1727188548077,3.8441,2601.4,2600.8,3.84488]
[1727188548227,3.8441,2601.4,2600.6,3.0]
[1727188548228,1.544,2601.5,2600.7,3.84498]
[1727188548427,3.84425,2601.3,2600.6,6.84525]
[1727188548668,0.98314245,2601.3,2600.8,3.84496]
[1727188548882,1.544,2601.5,2601.1,3.84444]
[1727188549075,1.544,2601.5,2601.3,3.84415]
[1727188549280,8.60359676,2601.9,2601.8,3.84349]
[1727188549444,8.60359676,2601.9,2601.7,3.84362]
[1727188549771,8.60359676,2601.9,2601.5,3.84383]
[1727188549926,8.60359676,2601.9,2601.6,3.84377]
[1727188550445,8.60359676,2601.9,2601.6,3.84365]
[1727188550638,17.75058096,2601.9,2601.2,3.84428]
[1727188550866,17.75058096,2601.9,2600.8,3.84485]
[1727188550867,3.844,2601.5,2600.8,3.84485]
[1727188551164,13.90713096,2601.9,2600.5,1.5722]
[1727188551165,1.544,2601.4,2601.1,3.84444]
[1727188551901,1.544,2601.4,2600.9,3.84467]
[1727188552314,7.05959676,2601.9,2600.7,4.5722]
[1727188552600,7.05959676,2601.9,2600.4,3.0]
[1727188552601,1.544,2601.8,2601.4,3.84403]
[1727188552759,1.544,2601.8,2601.5,3.84384]
[1727188553193,1.544,2601.8,2601.4,3.84403]
[1727188553401,2.40435968,2601.8,2600.8,1.5722]
[1727188553599,0.09610096,2601.7,2601.1,3.84443]
[1727188554014,2.40435968,2601.8,2601.1,3.84443]
[1727188554312,1.544,2601.8,2601.3,3.8442]
[1727188554675,1.544,2601.8,2601.5,3.84391]
[1727188554876,1.544,2601.8,2600.8,1.5722]
[1727188555146,1.64010154,2601.8,2601.1,3.84441]
[1727188555279,1.64010154,2601.8,2601.2,3.84437]
[1727188555476,1.64010154,2601.8,2601.3,3.84422]
[1727188555477,2.79829783,2601.8,2601.3,3.84422]
[1727188555790,2.89439936,2601.8,2601.1,3.84442]
[1727188555985,6.64184783,2601.8,2601.1,3.84442]
[1727188556174,2.79829783,2601.8,2601.1,3.84442]
[1727188556385,1.37012446,2601.7,2601.1,3.84442]
[1727188556702,1.544,2601.8,2601.3,3.84417]
[1727188557222,1.544,2601.8,2601.3,3.84413]
[1727188559099,1.544,2601.8,2600.9,3.84474]
[1727188559300,5.3878,2601.6,2600.9,3.84474]
[1727188559486,3.84395,2601.5,2600.9,3.84474]
[1727188560112,5.38809,2601.4,2600.7,3.84502]
[1727188560327,1.544,2601.4,2600.9,3.84481]
[1727188560615,0.538809,2601.3,2600.9,3.84481]
[1727188560921,1.544,2601.4,2601.0,3.84458]
[1727188561092,1.544,2601.4,2600.5,3.84532]
[1727188561283,1.544,2601.4,2600.9,3.8448]